[Event "*** Titled Tuesday Blitz"]
[Site "Chess.com"]
[Date "2020.05.12"]
[Round "10"]
[White "petincash"]
[Black "korbul"]
[Result "0-1"]
[WhiteElo "2373"]
[BlackElo "2556"]
[TimeControl "180+1"]
[EndTime "11:52:30 PDT"]
[Termination "korbul won on time"]

1. e4 {[%clk 0:02:57.7]} 1... c5 {[%clk 0:02:59.5]} 2. Nf3 {[%clk 0:02:56.6]}
2... e6 {[%clk 0:02:59.5]} 3. g3 {[%clk 0:02:56.2]} 3... Nc6 {[%clk 0:02:57.8]}
4. Bg2 {[%clk 0:02:55.6]} 4... a6 {[%clk 0:02:57.7]} 5. O-O {[%clk 0:02:54.8]}
5... Qc7 {[%clk 0:02:57.9]} 6. Re1 {[%clk 0:02:54.1]} 6... e5 {[%clk 0:02:52.1]}
7. d3 {[%clk 0:02:30]} 7... d6 {[%clk 0:02:50.4]} 8. a4 {[%clk 0:02:30.1]} 8...
h6 {[%clk 0:02:48.7]} 9. Nbd2 {[%clk 0:02:28.9]} 9... Nf6 {[%clk 0:02:48.2]} 10.
Nc4 {[%clk 0:02:28]} 10... g6 {[%clk 0:02:47.6]} 11. a5 {[%clk 0:02:26.2]} 11...
Bg7 {[%clk 0:02:47.1]} 12. c3 {[%clk 0:02:26.3]} 12... O-O {[%clk 0:02:46.2]}
13. Nb6 {[%clk 0:02:26.1]} 13... Rb8 {[%clk 0:02:46]} 14. h3 {[%clk 0:02:17.7]}
14... Be6 {[%clk 0:02:44.9]} 15. Qa4 {[%clk 0:01:56.5]} 15... Rbd8 {[%clk
0:02:43]} 16. Be3 {[%clk 0:01:50.4]} 16... Nh7 {[%clk 0:02:36.9]} 17. b4 {[%clk
0:01:31.5]} 17... cxb4 {[%clk 0:02:33.6]} 18. cxb4 {[%clk 0:01:31.8]} 18... f5
{[%clk 0:02:31.8]} 19. Nd5 {[%clk 0:01:24.8]} 19... Qf7 {[%clk 0:02:26.1]} 20.
Bb6 {[%clk 0:01:15.5]} 20... Rd7 {[%clk 0:02:25.8]} 21. Rac1 {[%clk 0:01:12.1]}
21... g5 {[%clk 0:02:19.3]} 22. b5 {[%clk 0:00:55.8]} 22... axb5 {[%clk
0:02:18]} 23. Qxb5 {[%clk 0:00:56.3]} 23... g4 {[%clk 0:02:17.5]} 24. Nh4 {[%clk
0:00:51.7]} 24... f4 {[%clk 0:02:14.7]} 25. a6 {[%clk 0:00:49]} 25... gxh3
{[%clk 0:02:10.9]} 26. axb7 {[%clk 0:00:27.4]} 26... Rxb7 {[%clk 0:01:49.9]} 27.
Qxc6 {[%clk 0:00:26.9]} 27... hxg2 {[%clk 0:01:49.1]} 28. Nf5 {[%clk 0:00:18.5]}
28... Bxd5 {[%clk 0:01:45.6]} 29. exd5 {[%clk 0:00:14.9]} 29... Rxb6 {[%clk
0:01:43.2]} 30. Qxb6 {[%clk 0:00:11.3]} 30... Qxf5 {[%clk 0:01:43.3]} 31. Qxd6
{[%clk 0:00:09.4]} 31... fxg3 {[%clk 0:01:33.5]} 32. f3 {[%clk 0:00:06.2]} 32...
Qxf3 {[%clk 0:01:30.4]} 33. Qe6+ {[%clk 0:00:05.1]} 33... Kh8 {[%clk 0:01:30.1]}
34. Rc2 {[%clk 0:00:02]} 34... Ng5 {[%clk 0:01:28]} 0-1

[Event "*** Titled Tuesday Blitz"]
[Site "Chess.com"]
[Date "2020.05.12"]
[Round "10"]
[White "rynos0411"]
[Black "Morshynska"]
[Result "1-0"]
[WhiteElo "2327"]
[BlackElo "2179"]
[TimeControl "180+1"]
[EndTime "11:52:38 PDT"]
[Termination "rynos0411 won on time"]

1. d4 {[%clk 0:03:00.9]} 1... d5 {[%clk 0:02:59.4]} 2. Nf3 {[%clk 0:03:00.6]}
2... Nf6 {[%clk 0:02:58.5]} 3. c4 {[%clk 0:02:57.8]} 3... c6 {[%clk 0:02:58.4]}
4. cxd5 {[%clk 0:02:53.5]} 4... cxd5 {[%clk 0:02:59.3]} 5. Nc3 {[%clk
0:02:53.2]} 5... Nc6 {[%clk 0:02:57.2]} 6. Bf4 {[%clk 0:02:49.8]} 6... a6 {[%clk
0:02:54.1]} 7. e3 {[%clk 0:02:48.8]} 7... e6 {[%clk 0:02:41.3]} 8. Bd3 {[%clk
0:02:46.9]} 8... Bd6 {[%clk 0:02:39.6]} 9. Bg3 {[%clk 0:02:43.9]} 9... O-O
{[%clk 0:02:38.1]} 10. O-O {[%clk 0:02:43.3]} 10... Bxg3 {[%clk 0:02:23.1]} 11.
hxg3 {[%clk 0:02:44.2]} 11... b5 {[%clk 0:02:13.4]} 12. Rc1 {[%clk 0:02:41.2]}
12... Bb7 {[%clk 0:02:12.6]} 13. a3 {[%clk 0:02:34.5]} 13... Rc8 {[%clk
0:02:11.2]} 14. Re1 {[%clk 0:02:32.4]} 14... Na5 {[%clk 0:02:05]} 15. Ne5 {[%clk
0:02:27]} 15... Nc4 {[%clk 0:00:01.8]} 16. Qc2 {[%clk 0:02:04.2]} 16... g6
{[%clk 0:00:01.9]} 17. Bxc4 {[%clk 0:01:56.1]} 17... bxc4 {[%clk 0:00:02.8]} 18.
Na4 {[%clk 0:01:53.4]} 18... Kg7 {[%clk 0:00:03.7]} 19. Nc5 {[%clk 0:01:52.9]}
19... Qc7 {[%clk 0:00:03.8]} 20. b3 {[%clk 0:01:47.4]} 20... cxb3 {[%clk
0:00:02.6]} 21. Qxb3 {[%clk 0:01:48]} 21... Ba8 {[%clk 0:00:02]} 22. Nxe6+
{[%clk 0:01:47.8]} 22... fxe6 {[%clk 0:00:01.9]} 23. Rxc7+ {[%clk 0:01:48.2]}
23... Rxc7 {[%clk 0:00:02.8]} 24. Qb6 {[%clk 0:01:47.2]} 24... Rfc8 {[%clk
0:00:02.7]} 25. Qxe6 {[%clk 0:01:44.6]} 25... Ne4 {[%clk 0:00:02.5]} 26. Qxa6
{[%clk 0:01:37.8]} 26... Nd2 {[%clk 0:00:02.4]} 27. Qd6 {[%clk 0:01:28.3]} 27...
Nc4 {[%clk 0:00:02.3]} 28. Qe6 {[%clk 0:01:24.3]} 28... Nxe5 {[%clk 0:00:01.8]}
29. Qxe5+ {[%clk 0:01:24.6]} 29... Kg8 {[%clk 0:00:02.3]} 30. Kh2 {[%clk
0:01:20.8]} 30... Bb7 {[%clk 0:00:02.5]} 31. f3 {[%clk 0:01:19.9]} 31... Ba8
{[%clk 0:00:02.6]} 32. e4 {[%clk 0:01:19.8]} 32... Rd7 {[%clk 0:00:02.4]} 33.
Qe6+ {[%clk 0:01:16.9]} 1-0

[Event "*** Titled Tuesday Blitz"]
[Site "Chess.com"]
[Date "2020.05.12"]
[Round "10"]
[White "Igor_Lysyj"]
[Black "gahryman"]
[Result "1-0"]
[WhiteElo "2800"]
[BlackElo "2663"]
[TimeControl "180+1"]
[EndTime "11:52:41 PDT"]
[Termination "Igor_Lysyj won by resignation"]

1. d4 {[%clk 0:03:00]} 1... Nf6 {[%clk 0:02:59.9]} 2. c4 {[%clk 0:02:59.7]} 2...
g6 {[%clk 0:03:00.3]} 3. Nc3 {[%clk 0:02:59.3]} 3... Bg7 {[%clk 0:03:00.8]} 4.
e4 {[%clk 0:02:59.1]} 4... d6 {[%clk 0:03:01.3]} 5. Nf3 {[%clk 0:02:59.2]} 5...
O-O {[%clk 0:03:01.7]} 6. Be2 {[%clk 0:02:59.3]} 6... e5 {[%clk 0:03:02.1]} 7.
O-O {[%clk 0:02:58.7]} 7... exd4 {[%clk 0:03:02.2]} 8. Nxd4 {[%clk 0:02:58.5]}
8... Re8 {[%clk 0:03:03.1]} 9. f3 {[%clk 0:02:58.1]} 9... c6 {[%clk 0:03:03.4]}
10. Kh1 {[%clk 0:02:57.8]} 10... Nbd7 {[%clk 0:03:03.1]} 11. Bf4 {[%clk
0:02:55.4]} 11... Nh5 {[%clk 0:03:02.6]} 12. Bxd6 {[%clk 0:02:53.5]} 12... Qf6
{[%clk 0:03:03.2]} 13. Nc2 {[%clk 0:02:52.7]} 13... Nf4 {[%clk 0:02:48]} 14. Rf2
{[%clk 0:02:52]} 14... h5 {[%clk 0:02:31]} 15. Bf1 {[%clk 0:02:34.7]} 15... h4
{[%clk 0:02:30.9]} 16. Ne3 {[%clk 0:02:32.6]} 16... Ne5 {[%clk 0:02:30.4]} 17.
c5 {[%clk 0:02:29.6]} 17... Be6 {[%clk 0:02:19.8]} 18. Qc2 {[%clk 0:02:14.4]}
18... b6 {[%clk 0:02:17.9]} 19. Re1 {[%clk 0:02:12.2]} 19... Qg5 {[%clk
0:02:07.1]} 20. b4 {[%clk 0:02:05.2]} 20... b5 {[%clk 0:02:03.5]} 21. Ned1
{[%clk 0:01:03.3]} 21... a5 {[%clk 0:02:02.1]} 22. a3 {[%clk 0:01:03.1]} 22...
axb4 {[%clk 0:02:02.1]} 23. axb4 {[%clk 0:01:03.2]} 23... Ra1 {[%clk 0:02:02.2]}
24. Qd2 {[%clk 0:01:00.6]} 24... Bf6 {[%clk 0:01:57.6]} 25. Nb2 {[%clk
0:00:56.7]} 25... Ra3 {[%clk 0:01:55.7]} 26. Ncd1 {[%clk 0:00:53.3]} 26... Rea8
{[%clk 0:01:17.3]} 27. Ne3 {[%clk 0:00:52.4]} 27... Kg7 {[%clk 0:01:15.3]} 28.
Ng4 {[%clk 0:00:50.5]} 28... Ra2 {[%clk 0:00:53.3]} 29. Nxf6 {[%clk 0:00:48.1]}
29... Qxf6 {[%clk 0:00:52.6]} 30. Qc3 {[%clk 0:00:45.4]} 30... Ra1 {[%clk
0:00:27.3]} 1-0

[Event "*** Titled Tuesday Blitz"]
[Site "Chess.com"]
[Date "2020.05.12"]
[Round "10"]
[White "mortngabriel"]
[Black "Vuk2000"]
[Result "1-0"]
[WhiteElo "2458"]
[BlackElo "2609"]
[TimeControl "180+1"]
[EndTime "11:52:41 PDT"]
[Termination "mortngabriel won by checkmate"]

1. e4 {[%clk 0:03:00.9]} 1... e6 {[%clk 0:03:00.3]} 2. Nf3 {[%clk 0:03:00.8]}
2... d5 {[%clk 0:03:00.8]} 3. e5 {[%clk 0:02:59.8]} 3... c5 {[%clk 0:03:01]} 4.
b4 {[%clk 0:02:59.4]} 4... cxb4 {[%clk 0:03:01]} 5. a3 {[%clk 0:02:59.4]} 5...
bxa3 {[%clk 0:02:56.5]} 6. d4 {[%clk 0:02:59.2]} 6... Nc6 {[%clk 0:02:54.6]} 7.
c3 {[%clk 0:02:58.6]} 7... Nge7 {[%clk 0:02:51.3]} 8. Bd3 {[%clk 0:02:58]} 8...
Nf5 {[%clk 0:02:47.4]} 9. O-O {[%clk 0:02:57.4]} 9... Be7 {[%clk 0:02:46.7]} 10.
g4 {[%clk 0:02:40]} 10... Nh4 {[%clk 0:02:46.2]} 11. Nxh4 {[%clk 0:02:40.6]}
11... Bxh4 {[%clk 0:02:45.9]} 12. f4 {[%clk 0:02:41.5]} 12... g6 {[%clk
0:02:42.5]} 13. g5 {[%clk 0:02:40]} 13... h6 {[%clk 0:02:42.2]} 14. Nxa3 {[%clk
0:02:23.3]} 14... hxg5 {[%clk 0:02:41.4]} 15. Nb5 {[%clk 0:02:12.9]} 15... g4
{[%clk 0:02:33.6]} 16. Nd6+ {[%clk 0:02:10.7]} 16... Kf8 {[%clk 0:02:33.3]} 17.
Qxg4 {[%clk 0:02:09]} 17... Be7 {[%clk 0:02:33.1]} 18. Nxf7 {[%clk 0:01:50.8]}
18... Rh4 {[%clk 0:02:04.7]} 19. Qg3 {[%clk 0:01:41]} 19... Qe8 {[%clk
0:01:34.6]} 20. Bxg6 {[%clk 0:01:39.4]} 20... Bd7 {[%clk 0:01:30.7]} 21. f5
{[%clk 0:01:21.1]} 21... exf5 {[%clk 0:01:30.4]} 22. Bh6+ {[%clk 0:01:01.3]}
22... Rxh6 {[%clk 0:01:20.4]} 23. Nxh6 {[%clk 0:01:02.2]} 23... Bh4 {[%clk
0:01:16.3]} 24. Qg2 {[%clk 0:01:01.9]} 24... Qd8 {[%clk 0:00:43.8]} 25. Nxf5
{[%clk 0:00:55.9]} 25... Kg8 {[%clk 0:00:33.1]} 26. Bf7+ {[%clk 0:00:44.7]}
26... Kxf7 {[%clk 0:00:31.8]} 27. Qg7+ {[%clk 0:00:44.4]} 27... Ke6 {[%clk
0:00:28.8]} 28. Qg6+ {[%clk 0:00:43.8]} 28... Bf6 {[%clk 0:00:22.3]} 29. Ng7+
{[%clk 0:00:43.6]} 29... Ke7 {[%clk 0:00:22]} 30. Qxf6# {[%clk 0:00:43.4]} 1-0

[Event "*** Titled Tuesday Blitz"]
[Site "Chess.com"]
[Date "2020.05.12"]
[Round "10"]
[White "Duong57"]
[Black "Kotofeyca"]
[Result "0-1"]
[WhiteElo "2274"]
[BlackElo "2439"]
[TimeControl "180+1"]
[EndTime "11:52:41 PDT"]
[Termination "Kotofeyca won by resignation"]

1. d4 {[%clk 0:03:00.9]} 1... d5 {[%clk 0:00:30.4]} 2. c4 {[%clk 0:02:55]} 2...
c6 {[%clk 0:00:31.3]} 3. Nf3 {[%clk 0:02:55]} 3... Nf6 {[%clk 0:00:31.9]} 4. Nc3
{[%clk 0:02:55.5]} 4... dxc4 {[%clk 0:00:32.1]} 5. a4 {[%clk 0:02:54.7]} 5...
Bg4 {[%clk 0:00:32.5]} 6. Ne5 {[%clk 0:02:53.5]} 6... Bh5 {[%clk 0:00:32.9]} 7.
Nxc4 {[%clk 0:02:51]} 7... e6 {[%clk 0:00:32]} 8. f3 {[%clk 0:02:50.9]} 8... c5
{[%clk 0:00:31.8]} 9. Be3 {[%clk 0:02:39]} 9... cxd4 {[%clk 0:00:30.6]} 10. Qxd4
{[%clk 0:02:38.4]} 10... Qxd4 {[%clk 0:00:30]} 11. Bxd4 {[%clk 0:02:38.5]} 11...
Nc6 {[%clk 0:00:30.9]} 12. Bf2 {[%clk 0:02:37]} 12... Bb4 {[%clk 0:00:30.4]} 13.
e4 {[%clk 0:02:35.2]} 13... Ke7 {[%clk 0:00:30.8]} 14. Be2 {[%clk 0:02:28.8]}
14... Rhd8 {[%clk 0:00:29.2]} 15. O-O {[%clk 0:02:28.7]} 15... Bxc3 {[%clk
0:00:26.6]} 16. bxc3 {[%clk 0:02:28.1]} 16... Nxe4 {[%clk 0:00:26.3]} 17. fxe4
{[%clk 0:02:24.6]} 17... Bxe2 {[%clk 0:00:27.2]} 18. Bc5+ {[%clk 0:02:24.6]}
18... Ke8 {[%clk 0:00:24.9]} 19. Nd6+ {[%clk 0:02:21.1]} 19... Rxd6 {[%clk
0:00:25]} 20. Bxd6 {[%clk 0:02:22]} 20... Bxf1 {[%clk 0:00:25.3]} 21. Rxf1
{[%clk 0:02:22.9]} 21... Rd8 {[%clk 0:00:25.5]} 22. e5 {[%clk 0:02:23.2]} 22...
f5 {[%clk 0:00:22.4]} 23. Rb1 {[%clk 0:02:22.2]} 23... b6 {[%clk 0:00:21.9]} 24.
Kf2 {[%clk 0:02:20.7]} 24... Rc8 {[%clk 0:00:21.8]} 25. Rd1 {[%clk 0:02:17.5]}
25... Na5 {[%clk 0:00:21.7]} 26. Rd3 {[%clk 0:02:15.7]} 26... Nc4 {[%clk
0:00:21.5]} 27. Kf3 {[%clk 0:02:15.2]} 27... Nxd6 {[%clk 0:00:21.2]} 28. exd6
{[%clk 0:02:12.7]} 28... Kd7 {[%clk 0:00:21]} 29. Kf4 {[%clk 0:02:13]} 29... Rc5
{[%clk 0:00:20.9]} 30. h4 {[%clk 0:02:07.7]} 30... g6 {[%clk 0:00:21.4]} 31. g3
{[%clk 0:02:06.7]} 31... e5+ {[%clk 0:00:21.8]} 32. Kg5 {[%clk 0:02:06.1]} 32...
e4 {[%clk 0:00:22.2]} 33. Re3 {[%clk 0:01:59.2]} 33... Kxd6 {[%clk 0:00:22]} 34.
h5 {[%clk 0:01:59.6]} 34... Ke5 {[%clk 0:00:20.5]} 35. hxg6 {[%clk 0:01:57.6]}
35... hxg6 {[%clk 0:00:21.4]} 36. Kxg6 {[%clk 0:01:57.2]} 36... Rc4 {[%clk
0:00:21.8]} 37. Kg5 {[%clk 0:01:56.2]} 37... Rxa4 {[%clk 0:00:20.1]} 38. Re2
{[%clk 0:01:46.7]} 38... Ra3 {[%clk 0:00:20.2]} 39. g4 {[%clk 0:01:46.3]} 39...
f4 {[%clk 0:00:19.4]} 40. Kh5 {[%clk 0:01:46]} 40... f3 {[%clk 0:00:19.8]} 41.
Re1 {[%clk 0:01:44.4]} 41... Kf4 {[%clk 0:00:20.1]} 42. g5 {[%clk 0:01:44.1]}
42... f2 {[%clk 0:00:19.3]} 43. Rf1 {[%clk 0:01:43.8]} 43... e3 {[%clk
0:00:20.2]} 44. g6 {[%clk 0:01:43.9]} 44... Ra5+ {[%clk 0:00:20.3]} 0-1

[Event "*** Titled Tuesday Blitz"]
[Site "Chess.com"]
[Date "2020.05.12"]
[Round "10"]
[White "pirulillo"]
[Black "Gerodot71"]
[Result "0-1"]
[WhiteElo "2205"]
[BlackElo "2407"]
[TimeControl "180+1"]
[EndTime "11:52:43 PDT"]
[Termination "Gerodot71 won by resignation"]

1. e4 {[%clk 0:02:19.5]} 1... e5 {[%clk 0:02:59.6]} 2. Bc4 {[%clk 0:02:14.8]}
2... Nf6 {[%clk 0:02:58.9]} 3. d3 {[%clk 0:02:09.7]} 3... c6 {[%clk 0:02:58.6]}
4. Nf3 {[%clk 0:02:07.5]} 4... d5 {[%clk 0:02:58.3]} 5. Bb3 {[%clk 0:02:01]}
5... Nbd7 {[%clk 0:02:53.8]} 6. Nc3 {[%clk 0:01:59.2]} 6... dxe4 {[%clk
0:02:41.8]} 7. Ng5 {[%clk 0:01:57.1]} 7... Nc5 {[%clk 0:02:29]} 8. Ncxe4 {[%clk
0:01:48]} 8... Nxb3 {[%clk 0:02:26.2]} 9. axb3 {[%clk 0:01:48]} 9... Be7 {[%clk
0:02:17.7]} 10. O-O {[%clk 0:01:45.1]} 10... O-O {[%clk 0:02:17]} 11. Nxf6+
{[%clk 0:01:40.7]} 11... Bxf6 {[%clk 0:02:16.7]} 12. Qh5 {[%clk 0:01:37.3]}
12... Bxg5 {[%clk 0:02:12]} 13. Bxg5 {[%clk 0:01:37.1]} 13... f6 {[%clk
0:02:11.8]} 14. Be3 {[%clk 0:01:37]} 14... Qe8 {[%clk 0:02:08.4]} 15. Qxe8
{[%clk 0:01:32.1]} 15... Rxe8 {[%clk 0:02:09.3]} 16. Rxa7 {[%clk 0:01:21.7]}
16... Rxa7 {[%clk 0:02:09.1]} 17. Bxa7 {[%clk 0:01:15.3]} 17... Be6 {[%clk
0:02:10]} 18. Be3 {[%clk 0:01:08.8]} 18... Ra8 {[%clk 0:02:09]} 19. f4 {[%clk
0:00:52.9]} 19... exf4 {[%clk 0:02:07]} 20. Rxf4 {[%clk 0:00:52]} 20... Ra2
{[%clk 0:02:06]} 21. Bd4 {[%clk 0:00:51.8]} 21... Ra1+ {[%clk 0:02:05.1]} 22.
Kf2 {[%clk 0:00:51.6]} 22... Rc1 {[%clk 0:02:05.2]} 23. Kg3 {[%clk 0:00:45.2]}
23... Rxc2 {[%clk 0:02:04.5]} 24. Rf2 {[%clk 0:00:44.7]} 24... Rc1 {[%clk
0:01:48.4]} 25. Bc3 {[%clk 0:00:43]} 25... Bxb3 {[%clk 0:01:47.6]} 26. Kf4
{[%clk 0:00:41]} 26... Bd5 {[%clk 0:01:46.8]} 27. g4 {[%clk 0:00:39.7]} 27... h6
{[%clk 0:01:43.8]} 28. h4 {[%clk 0:00:39.7]} 28... Rd1 {[%clk 0:01:40.6]} 29.
Ke3 {[%clk 0:00:37.2]} 29... Rh1 {[%clk 0:01:21.7]} 30. g5 {[%clk 0:00:30.2]}
30... Rh3+ {[%clk 0:01:16.3]} 31. Kd4 {[%clk 0:00:27.5]} 31... Rxh4+ {[%clk
0:01:14.2]} 32. Kc5 {[%clk 0:00:27.8]} 32... hxg5 {[%clk 0:01:11]} 33. Kd6
{[%clk 0:00:22.4]} 33... Kf7 {[%clk 0:01:07.1]} 0-1

[Event "*** Titled Tuesday Blitz"]
[Site "Chess.com"]
[Date "2020.05.12"]
[Round "10"]
[White "zurzan"]
[Black "HunterBRR"]
[Result "0-1"]
[WhiteElo "1957"]
[BlackElo "2014"]
[TimeControl "180+1"]
[EndTime "11:52:43 PDT"]
[Termination "HunterBRR won by checkmate"]

1. f4 {[%clk 0:03:00.9]} 1... d5 {[%clk 0:02:59.1]} 2. Nf3 {[%clk 0:03:00.8]}
2... Nf6 {[%clk 0:02:59]} 3. g3 {[%clk 0:03:00.8]} 3... c5 {[%clk 0:02:57.6]} 4.
Bg2 {[%clk 0:03:01.7]} 4... Nc6 {[%clk 0:02:57.4]} 5. O-O {[%clk 0:03:02.6]}
5... e6 {[%clk 0:02:53.6]} 6. d3 {[%clk 0:03:03.5]} 6... Be7 {[%clk 0:02:50.5]}
7. Qe1 {[%clk 0:03:03.5]} 7... O-O {[%clk 0:02:49]} 8. c3 {[%clk 0:02:59.2]}
8... Bd7 {[%clk 0:02:46.4]} 9. e4 {[%clk 0:02:57.9]} 9... dxe4 {[%clk
0:02:43.6]} 10. dxe4 {[%clk 0:02:58.8]} 10... Qc7 {[%clk 0:02:37]} 11. Nbd2
{[%clk 0:02:49.6]} 11... b5 {[%clk 0:02:24.9]} 12. a3 {[%clk 0:02:47.7]} 12...
b4 {[%clk 0:02:15.6]} 13. axb4 {[%clk 0:02:46.8]} 13... cxb4 {[%clk 0:02:15.5]}
14. c4 {[%clk 0:02:40.5]} 14... Bc5+ {[%clk 0:01:20]} 15. Kh1 {[%clk 0:02:39.9]}
15... Nd4 {[%clk 0:01:01.9]} 16. Nxd4 {[%clk 0:02:24]} 16... Bxd4 {[%clk
0:01:02.8]} 17. e5 {[%clk 0:02:21.2]} 17... Ng4 {[%clk 0:00:57.8]} 18. Bxa8
{[%clk 0:02:13.7]} 18... Rxa8 {[%clk 0:00:56]} 19. Nf3 {[%clk 0:02:10.7]} 19...
Bc6 {[%clk 0:00:53.8]} 20. h3 {[%clk 0:02:07.4]} 20... Qb7 {[%clk 0:00:33.2]}
21. Kg2 {[%clk 0:01:59.8]} 21... Bxf3+ {[%clk 0:00:19.9]} 22. Rxf3 {[%clk
0:01:59.1]} 22... Nh2 {[%clk 0:00:19.6]} 23. Qe2 {[%clk 0:01:41.4]} 23... Nxf3
{[%clk 0:00:16.6]} 24. Qxf3 {[%clk 0:01:41.5]} 24... Qxf3+ {[%clk 0:00:16.4]}
25. Kxf3 {[%clk 0:01:41.7]} 25... Rd8 {[%clk 0:00:15.9]} 26. b3 {[%clk
0:01:39.1]} 26... Bxa1 {[%clk 0:00:15.5]} 27. Be3 {[%clk 0:01:37.3]} 27... Bd4
{[%clk 0:00:15.1]} 28. Bd2 {[%clk 0:01:36.2]} 28... Bc3 {[%clk 0:00:14.1]} 29.
Be3 {[%clk 0:01:36.1]} 29... a5 {[%clk 0:00:12.1]} 30. Bb6 {[%clk 0:01:35]}
30... Ra8 {[%clk 0:00:12]} 31. c5 {[%clk 0:01:33.4]} 31... a4 {[%clk 0:00:11.9]}
32. bxa4 {[%clk 0:01:32.8]} 32... b3 {[%clk 0:00:12.1]} 33. c6 {[%clk 0:01:29]}
33... b2 {[%clk 0:00:12.3]} 34. a5 {[%clk 0:01:26.8]} 34... b1=Q {[%clk
0:00:12.3]} 35. c7 {[%clk 0:01:27.3]} 35... Qd3+ {[%clk 0:00:12.2]} 36. Kg4
{[%clk 0:01:27.1]} 36... h5+ {[%clk 0:00:11.7]} 37. Kg5 {[%clk 0:01:26.5]} 37...
Qf5+ {[%clk 0:00:10.7]} 38. Kh4 {[%clk 0:01:26.3]} 38... g5+ {[%clk 0:00:10.7]}
39. fxg5 {[%clk 0:01:24.5]} 39... Qe4+ {[%clk 0:00:10]} 40. Kxh5 {[%clk
0:01:24.3]} 40... Kg7 {[%clk 0:00:09.3]} 41. g4 {[%clk 0:01:23.7]} 41... Rh8#
{[%clk 0:00:08.9]} 0-1

[Event "*** Titled Tuesday Blitz"]
[Site "Chess.com"]
[Date "2020.05.12"]
[Round "10"]
[White "vladimir_petrov"]
[Black "FGHSMN"]
[Result "0-1"]
[WhiteElo "2313"]
[BlackElo "2492"]
[TimeControl "180+1"]
[EndTime "11:52:45 PDT"]
[Termination "FGHSMN won on time"]

1. e4 {[%clk 0:03:00.9]} 1... c5 {[%clk 0:02:59.7]} 2. Nf3 {[%clk 0:03:00.6]}
2... d6 {[%clk 0:02:59.8]} 3. d4 {[%clk 0:03:00.7]} 3... cxd4 {[%clk 0:02:59.4]}
4. Nxd4 {[%clk 0:03:01.6]} 4... Nf6 {[%clk 0:02:59.6]} 5. Nc3 {[%clk 0:03:01.5]}
5... a6 {[%clk 0:02:59.5]} 6. Be3 {[%clk 0:03:00.7]} 6... e5 {[%clk 0:02:59.3]}
7. Nb3 {[%clk 0:03:00.7]} 7... Be6 {[%clk 0:02:59.1]} 8. h3 {[%clk 0:03:00.4]}
8... Be7 {[%clk 0:02:55.6]} 9. f4 {[%clk 0:03:00.2]} 9... exf4 {[%clk
0:02:53.2]} 10. Bxf4 {[%clk 0:03:01.1]} 10... Nc6 {[%clk 0:02:53.1]} 11. Qe2
{[%clk 0:03:00.3]} 11... Nd7 {[%clk 0:02:53.4]} 12. O-O-O {[%clk 0:02:58.8]}
12... Nce5 {[%clk 0:02:53.2]} 13. g4 {[%clk 0:02:54.6]} 13... O-O {[%clk
0:02:49]} 14. Kb1 {[%clk 0:02:48.7]} 14... Rc8 {[%clk 0:02:47.1]} 15. Nd4 {[%clk
0:02:37.8]} 15... Rxc3 {[%clk 0:02:31.5]} 16. bxc3 {[%clk 0:02:35.8]} 16... Qa5
{[%clk 0:02:27.6]} 17. Nxe6 {[%clk 0:02:16]} 17... fxe6 {[%clk 0:02:25.5]} 18.
Bc1 {[%clk 0:02:11.5]} 18... Nc5 {[%clk 0:02:19.7]} 19. Rd4 {[%clk 0:01:33.2]}
19... Nc6 {[%clk 0:02:01.1]} 20. Bb2 {[%clk 0:01:04.3]} 20... Nxd4 {[%clk
0:01:41.5]} 21. cxd4 {[%clk 0:01:05.2]} 21... Na4 {[%clk 0:01:40.9]} 22. Qc4
{[%clk 0:00:25.2]} 22... d5 {[%clk 0:01:29.5]} 23. exd5 {[%clk 0:00:20.3]} 23...
exd5 {[%clk 0:01:30.4]} 24. Qe2 {[%clk 0:00:20.2]} 24... Qb4 {[%clk 0:01:08.2]}
25. Qe6+ {[%clk 0:00:09.1]} 25... Kh8 {[%clk 0:01:06.8]} 26. Kc1 {[%clk
0:00:08.8]} 26... Qxb2+ {[%clk 0:01:05.4]} 27. Kd2 {[%clk 0:00:09]} 27... Qxd4+
{[%clk 0:01:01.8]} 28. Bd3 {[%clk 0:00:08.7]} 28... Bb4+ {[%clk 0:01:01.5]} 0-1

[Event "*** Titled Tuesday Blitz"]
[Site "Chess.com"]
[Date "2020.05.12"]
[Round "10"]
[White "14Sokol88"]
[Black "viktorskliarov"]
[Result "1-0"]
[WhiteElo "2399"]
[BlackElo "2557"]
[TimeControl "180+1"]
[EndTime "11:52:48 PDT"]
[Termination "14Sokol88 won by resignation"]

1. e4 {[%clk 0:03:00.9]} 1... c5 {[%clk 0:02:48.2]} 2. Nf3 {[%clk 0:03:00.4]}
2... Nc6 {[%clk 0:02:48.4]} 3. d4 {[%clk 0:02:58.6]} 3... cxd4 {[%clk
0:02:49.3]} 4. Nxd4 {[%clk 0:02:58.7]} 4... Nf6 {[%clk 0:02:50]} 5. Nc3 {[%clk
0:02:58.5]} 5... e5 {[%clk 0:02:50.7]} 6. Ndb5 {[%clk 0:02:58.2]} 6... d6 {[%clk
0:02:51.2]} 7. Bg5 {[%clk 0:02:56.5]} 7... a6 {[%clk 0:02:51.8]} 8. Na3 {[%clk
0:02:56.5]} 8... b5 {[%clk 0:02:52.5]} 9. Nd5 {[%clk 0:02:56.2]} 9... Be7 {[%clk
0:02:53]} 10. Bxf6 {[%clk 0:02:56.2]} 10... Bxf6 {[%clk 0:02:53.7]} 11. c3
{[%clk 0:02:56.4]} 11... Bg5 {[%clk 0:02:53.4]} 12. Nc2 {[%clk 0:02:55.9]} 12...
O-O {[%clk 0:02:53.1]} 13. a4 {[%clk 0:02:53.2]} 13... bxa4 {[%clk 0:02:52.9]}
14. Rxa4 {[%clk 0:02:54.1]} 14... a5 {[%clk 0:02:53.6]} 15. Bc4 {[%clk
0:02:52.7]} 15... Rb8 {[%clk 0:02:53.3]} 16. Ra2 {[%clk 0:02:39.2]} 16... g6
{[%clk 0:02:51.9]} 17. O-O {[%clk 0:02:35.4]} 17... Kh8 {[%clk 0:02:50.7]} 18.
Kh1 {[%clk 0:02:24.6]} 18... f5 {[%clk 0:02:50.4]} 19. exf5 {[%clk 0:02:22.5]}
19... gxf5 {[%clk 0:02:50.2]} 20. f4 {[%clk 0:02:21.4]} 20... exf4 {[%clk
0:02:42.8]} 21. Nxf4 {[%clk 0:02:20.5]} 21... Ne5 {[%clk 0:02:43.5]} 22. Ne6
{[%clk 0:01:57.1]} 22... Bxe6 {[%clk 0:02:42.8]} 23. Bxe6 {[%clk 0:01:56.8]}
23... f4 {[%clk 0:02:35.6]} 24. Nd4 {[%clk 0:01:48.9]} 24... Qf6 {[%clk
0:02:06.9]} 25. Bd5 {[%clk 0:01:38.2]} 25... Rbe8 {[%clk 0:01:45.3]} 26. Rxa5
{[%clk 0:01:28.9]} 26... Qh6 {[%clk 0:01:44.5]} 27. Nc6 {[%clk 0:01:01.4]} 27...
f3 {[%clk 0:01:25.4]} 28. Bxf3 {[%clk 0:00:53.8]} 28... Nxf3 {[%clk 0:01:22.5]}
29. Rxf3 {[%clk 0:00:51.8]} 29... Rxf3 {[%clk 0:01:20.7]} 30. gxf3 {[%clk
0:00:50.2]} 30... Bf4 {[%clk 0:01:18.8]} 31. Qd4+ {[%clk 0:00:43.6]} 31... Kg8
{[%clk 0:00:52.4]} 32. Qg1+ {[%clk 0:00:40.4]} 32... Kf8 {[%clk 0:00:47.5]} 33.
Rf5+ {[%clk 0:00:36.7]} 1-0